[Event "Titled Tuesday Blitz March 29 Late 2022"]
[White "Burke, Paul"]
[Black "Storey, Charles H"]
[WhiteFideId "2605767"]
[BlackFideId "406686"]
[WhiteElo "1886"]
[BlackElo "2263"]
[Result "0-1"]
[Round "11"]
[TimeControl "180+1"]
[Date "2022.03.30"]
[WhiteClock "0:00:08"]
[BlackClock "0:00:38"]

1. e4 {[%clk 0:03:00]}  g6 {[%clk 0:02:59]} 2. Nc3 {[%clk 0:03:00]}  Bg7 {[%clk 0:02:59]} 3. g3 {[%clk 0:02:59]}  c5 {[%clk 0:02:58]} 4. Bg2 {[%clk 0:02:56]}  Nc6 {[%clk 0:02:58]} 5. Nge2 {[%clk 0:02:56]}  d6 {[%clk 0:02:57]} 6. O-O {[%clk 0:02:56]}  e5 {[%clk 0:02:57]} 7. d3 {[%clk 0:02:56]}  Nge7 {[%clk 0:02:56]} 8. h3 {[%clk 0:02:56]}  O-O {[%clk 0:02:55]} 9. Nd5 {[%clk 0:02:50]}  Nxd5 {[%clk 0:02:54]} 10. exd5 {[%clk 0:02:49]}  Nd4 {[%clk 0:02:52]} 11. c3 {[%clk 0:02:48]}  Nxe2+ {[%clk 0:02:51]} 12. Qxe2 {[%clk 0:02:48]}  f5 {[%clk 0:02:51]} 13. f4 {[%clk 0:02:48]}  Bd7 {[%clk 0:02:44]} 14. fxe5 {[%clk 0:02:44]}  Bxe5 {[%clk 0:02:43]} 15. Bf4 {[%clk 0:02:42]}  Qf6 {[%clk 0:02:40]} 16. Bxe5 {[%clk 0:02:40]}  dxe5 {[%clk 0:02:36]} 17. c4 {[%clk 0:02:33]}  Rae8 {[%clk 0:02:33]} 18. Rae1 {[%clk 0:02:32]}  Qg5 {[%clk 0:02:30]} 19. Qe3 {[%clk 0:02:24]}  f4 {[%clk 0:02:28]} 20. gxf4 {[%clk 0:02:17]}  exf4 {[%clk 0:02:27]} 21. Qf3 {[%clk 0:02:17]}  Rxe1 {[%clk 0:02:16]} 22. Rxe1 {[%clk 0:02:16]}  Qf6 {[%clk 0:02:09]} 23. b3 {[%clk 0:01:44]}  g5 {[%clk 0:01:57]} 24. Rf1 {[%clk 0:01:25]}  Bf5 {[%clk 0:01:50]} 25. d6 {[%clk 0:01:13]}  Qxd6 {[%clk 0:01:48]} 26. Qxb7 {[%clk 0:01:09]}  Qxd3 {[%clk 0:01:40]} 27. Qd5+ {[%clk 0:01:05]}  Qxd5 {[%clk 0:01:40]} 28. Bxd5+ {[%clk 0:01:05]}  Kg7 {[%clk 0:01:40]} 29. Bg2 {[%clk 0:00:53]}  Re8 {[%clk 0:01:27]} 30. Rf2 {[%clk 0:00:53]}  Kf6 {[%clk 0:01:21]} 31. Rd2 {[%clk 0:00:53]}  Re1+ {[%clk 0:01:18]} 32. Kf2 {[%clk 0:00:49]}  Ra1 {[%clk 0:01:16]} 33. Rd6+ {[%clk 0:00:43]}  Ke7 {[%clk 0:01:13]} 34. Rd2 {[%clk 0:00:41]}  h5 {[%clk 0:01:07]} 35. Re2+ {[%clk 0:00:39]}  Kf6 {[%clk 0:01:07]} 36. Rd2 {[%clk 0:00:39]}  g4 {[%clk 0:01:06]} 37. hxg4 {[%clk 0:00:39]}  hxg4 {[%clk 0:01:06]} 38. Bc6 {[%clk 0:00:34]}  g3+ {[%clk 0:01:01]} 39. Kg2 {[%clk 0:00:32]}  Kg5 {[%clk 0:00:59]} 40. Bf3 {[%clk 0:00:29]}  Kh4 {[%clk 0:00:52]} 41. Be2 {[%clk 0:00:20]}  Bg4 {[%clk 0:00:49]} 42. a4 {[%clk 0:00:08]}  Bxe2 {[%clk 0:00:37]} 43. Rxe2 {[%clk 0:00:08]}  Kg4 {[%clk 0:00:38]} 0-1


[Site "https://www.chess.com"]

[Event "Titled Tuesday Blitz March 29 Late 2022"]
[White "Caruana, Fabiano"]
[Black "Bortnyk, Olexandr"]
[WhiteFideId "2020009"]
[BlackFideId "14120828"]
[WhiteElo "2744"]
[BlackElo "2723"]
[Result "1-0"]
[Round "11"]
[TimeControl "180+1"]
[Date "2022.03.29"]
[WhiteClock "0:00:09"]
[BlackClock "0:00:01"]

1. c4 {[%clk 0:03:00]}  b6 {[%clk 0:02:41]} 2. Nc3 {[%clk 0:03:00]}  Bb7 {[%clk 0:02:42]} 3. e4 {[%clk 0:03:00]}  e5 {[%clk 0:02:38]} 4. Nf3 {[%clk 0:02:59]}  Nc6 {[%clk 0:02:31]} 5. d4 {[%clk 0:02:59]}  exd4 {[%clk 0:02:18]} 6. Nxd4 {[%clk 0:03:00]}  g6 {[%clk 0:02:14]} 7. Nxc6 {[%clk 0:02:57]}  Bxc6 {[%clk 0:02:06]} 8. Qd4 {[%clk 0:02:48]}  Qf6 {[%clk 0:02:05]} 9. Be3 {[%clk 0:02:48]}  Bc5 {[%clk 0:02:00]} 10. Qxf6 {[%clk 0:02:48]}  Nxf6 {[%clk 0:02:00]} 11. Bxc5 {[%clk 0:02:46]}  bxc5 {[%clk 0:02:01]} 12. f3 {[%clk 0:02:46]}  d6 {[%clk 0:01:58]} 13. O-O-O {[%clk 0:02:45]}  O-O {[%clk 0:01:54]} 14. Bd3 {[%clk 0:02:44]}  Kg7 {[%clk 0:01:40]} 15. Bc2 {[%clk 0:02:44]}  a6 {[%clk 0:01:29]} 16. Ba4 {[%clk 0:02:43]}  Bb7 {[%clk 0:01:28]} 17. Rhe1 {[%clk 0:02:42]}  Nh5 {[%clk 0:01:25]} 18. e5 {[%clk 0:02:38]}  Nf4 {[%clk 0:01:23]} 19. exd6 {[%clk 0:02:37]}  cxd6 {[%clk 0:01:24]} 20. Re7 {[%clk 0:02:32]}  Rab8 {[%clk 0:01:22]} 21. Rxd6 {[%clk 0:02:12]}  Nxg2 {[%clk 0:01:21]} 22. Ne4 {[%clk 0:01:58]}  Nh4 {[%clk 0:01:19]} 23. Rdd7 {[%clk 0:01:25]}  Bc8 {[%clk 0:01:18]} 24. Rc7 {[%clk 0:01:16]}  Nf5 {[%clk 0:01:17]} 25. Re5 {[%clk 0:01:17]}  Nd4 {[%clk 0:01:18]} 26. Nxc5 {[%clk 0:01:13]}  Nxf3 {[%clk 0:01:02]} 27. Ree7 {[%clk 0:01:09]}  Nd4 {[%clk 0:00:36]} 28. Be8 {[%clk 0:01:06]}  Be6 {[%clk 0:00:24]} 29. Nxe6+ {[%clk 0:00:31]}  Nxe6 {[%clk 0:00:24]} 30. Rxe6 {[%clk 0:00:30]}  Rfxe8 {[%clk 0:00:24]} 31. Rxe8 {[%clk 0:00:31]}  Rxe8 {[%clk 0:00:24]} 32. b4 {[%clk 0:00:31]}  g5 {[%clk 0:00:16]} 33. a4 {[%clk 0:00:27]}  Rb8 {[%clk 0:00:15]} 34. b5 {[%clk 0:00:27]}  axb5 {[%clk 0:00:16]} 35. cxb5 {[%clk 0:00:26]}  g4 {[%clk 0:00:16]} 36. Rc5 {[%clk 0:00:26]}  Kf6 {[%clk 0:00:15]} 37. a5 {[%clk 0:00:26]}  Ke6 {[%clk 0:00:15]} 38. b6 {[%clk 0:00:17]}  Kd6 {[%clk 0:00:15]} 39. Rc7 {[%clk 0:00:17]}  f5 {[%clk 0:00:11]} 40. Rxh7 {[%clk 0:00:16]}  Kc6 {[%clk 0:00:10]} 41. Rf7 {[%clk 0:00:16]}  Kb5 {[%clk 0:00:09]} 42. Rxf5+ {[%clk 0:00:16]}  Ka6 {[%clk 0:00:10]} 43. Rh5 {[%clk 0:00:16]}  Rg8 {[%clk 0:00:09]} 44. Kd2 {[%clk 0:00:09]}  g3 {[%clk 0:00:09]} 45. hxg3 {[%clk 0:00:10]}  Rxg3 {[%clk 0:00:10]} 46. Rd5 {[%clk 0:00:10]}  Rh3 {[%clk 0:00:06]} 47. Kc2 {[%clk 0:00:09]}  Rg3 {[%clk 0:00:04]} 48. Kd2 {[%clk 0:00:10]}  Rh3 {[%clk 0:00:04]} 49. Ke2 {[%clk 0:00:10]}  Rg3 {[%clk 0:00:04]} 50. Kf2 {[%clk 0:00:11]}  Rb3 {[%clk 0:00:04]} 51. Ke2 {[%clk 0:00:10]}  Rg3 {[%clk 0:00:04]} 52. Kd1 {[%clk 0:00:11]}  Rh3 {[%clk 0:00:04]} 53. Kc2 {[%clk 0:00:11]}  Rg3 {[%clk 0:00:05]} 54. Rd8 {[%clk 0:00:10]}  Rg2+ {[%clk 0:00:02]} 55. Kd3 {[%clk 0:00:10]}  Rg3+ {[%clk 0:00:01]} 56. Ke4 {[%clk 0:00:10]}  Rb3 {[%clk 0:00:01]} 57. Ra8+ {[%clk 0:00:09]}  Kb7 {[%clk 0:00:01]} 58. Ra7+ {[%clk 0:00:10]}  Kc6 {[%clk 0:00:02]} 59. Kd4 {[%clk 0:00:09]}  Rb4+ {[%clk 0:00:02]} 60. Kc3 {[%clk 0:00:09]}  Rb1 {[%clk 0:00:03]} 61. Kc4 {[%clk 0:00:08]}  Rc1+ {[%clk 0:00:03]} 62. Kb3 {[%clk 0:00:08]}  Rb1+ {[%clk 0:00:04]} 63. Kc3 {[%clk 0:00:09]}  Ra1 {[%clk 0:00:02]} 64. Rc7+ {[%clk 0:00:08]}  Kd6 {[%clk 0:00:02]} 65. Kb4 {[%clk 0:00:08]}  Rb1+ {[%clk 0:00:02]} 66. Ka4 {[%clk 0:00:09]}  Kd5 {[%clk 0:00:02]} 67. Rc3 {[%clk 0:00:08]}  Kd6 {[%clk 0:00:01]} 68. Rb3 {[%clk 0:00:08]}  Rh1 {[%clk 0:00:01]} 69. Kb5 {[%clk 0:00:08]}  Rh8 {[%clk 0:00:01]} 70. Ka6 {[%clk 0:00:08]}  Ra8+ {[%clk 0:00:01]} 71. Kb5 {[%clk 0:00:08]}  Rh8 {[%clk 0:00:01]} 72. Rc3 {[%clk 0:00:08]}  Rh5+ {[%clk 0:00:01]} 73. Ka6 {[%clk 0:00:09]} 1-0


[Site "https://www.chess.com"]

[Event "Titled Tuesday Blitz March 29 Late 2022"]
[White "Goryachkina, Aleksandra"]
[Black "Mortazavi, Ali"]
[WhiteFideId "4147103"]
[BlackFideId "401323"]
[WhiteElo "2426"]
[BlackElo "2339"]
[Result "1-0"]
[Round "11"]
[TimeControl "180+1"]
[Date "2022.03.29"]
[WhiteClock "0:01:23"]
[BlackClock "0:01:23"]

1. e4 {[%clk 0:02:59]}  c6 {[%clk 0:02:59]} 2. d4 {[%clk 0:02:56]}  d5 {[%clk 0:02:59]} 3. e5 {[%clk 0:02:56]}  Bf5 {[%clk 0:02:59]} 4. Bd3 {[%clk 0:02:55]}  Bxd3 {[%clk 0:02:59]} 5. Qxd3 {[%clk 0:02:56]}  e6 {[%clk 0:03:00]} 6. Nf3 {[%clk 0:02:54]}  c5 {[%clk 0:03:00]} 7. c3 {[%clk 0:02:50]}  Nc6 {[%clk 0:03:00]} 8. O-O {[%clk 0:02:47]}  Qb6 {[%clk 0:03:01]} 9. a3 {[%clk 0:02:33]}  cxd4 {[%clk 0:02:51]} 10. cxd4 {[%clk 0:02:32]}  Nge7 {[%clk 0:02:51]} 11. b4 {[%clk 0:02:17]}  Nf5 {[%clk 0:02:50]} 12. Be3 {[%clk 0:02:16]}  h5 {[%clk 0:02:49]} 13. Nc3 {[%clk 0:02:14]}  Be7 {[%clk 0:02:49]} 14. Nxd5 {[%clk 0:02:08]}  Qd8 {[%clk 0:02:43]} 15. Nc3 {[%clk 0:02:01]}  Qd7 {[%clk 0:02:35]} 16. Rfd1 {[%clk 0:01:57]}  O-O-O {[%clk 0:02:23]} 17. d5 {[%clk 0:01:50]}  exd5 {[%clk 0:02:17]} 18. Nxd5 {[%clk 0:01:48]}  Nxe3 {[%clk 0:02:15]} 19. Qxe3 {[%clk 0:01:47]}  Qe6 {[%clk 0:02:14]} 20. Nxe7+ {[%clk 0:01:34]}  Qxe7 {[%clk 0:02:14]} 21. b5 {[%clk 0:01:33]}  Rxd1+ {[%clk 0:01:32]} 22. Rxd1 {[%clk 0:01:34]}  Nd8 {[%clk 0:01:23]} 23. Qxa7 {[%clk 0:01:28]}  Qc7 {[%clk 0:01:23]} 24. Qa8+ {[%clk 0:01:24]}  Qb8 {[%clk 0:01:23]} 25. Rc1+ {[%clk 0:01:23]} 1-0


[Site "https://www.chess.com"]

[Event "Titled Tuesday Blitz March 29 Late 2022"]
[White "Gurevich, Dmitry"]
[Black "Fiol, Fabrice"]
[WhiteFideId "2000407"]
[BlackFideId "611670"]
[WhiteElo "2506"]
[BlackElo "2421"]
[Result "1-0"]
[Round "11"]
[TimeControl "180+1"]
[Date "2022.03.29"]
[WhiteClock "0:00:08"]
[BlackClock "0:00:01"]

1. d4 {[%clk 0:03:00]}  Nf6 {[%clk 0:02:58]} 2. c4 {[%clk 0:03:00]}  e6 {[%clk 0:02:58]} 3. g3 {[%clk 0:02:59]}  Bb4+ {[%clk 0:02:58]} 4. Nd2 {[%clk 0:02:59]}  O-O {[%clk 0:02:56]} 5. Bg2 {[%clk 0:02:59]}  c5 {[%clk 0:02:54]} 6. a3 {[%clk 0:02:57]}  Bxd2+ {[%clk 0:02:53]} 7. Qxd2 {[%clk 0:02:57]}  cxd4 {[%clk 0:02:51]} 8. Nf3 {[%clk 0:02:57]}  d5 {[%clk 0:02:47]} 9. cxd5 {[%clk 0:02:55]}  Nxd5 {[%clk 0:02:47]} 10. Nxd4 {[%clk 0:02:53]}  Nc6 {[%clk 0:02:48]} 11. Nxc6 {[%clk 0:02:52]}  bxc6 {[%clk 0:02:48]} 12. O-O {[%clk 0:02:37]}  Qb6 {[%clk 0:02:44]} 13. Rd1 {[%clk 0:02:30]}  Ba6 {[%clk 0:02:40]} 14. b4 {[%clk 0:02:22]}  Rad8 {[%clk 0:02:39]} 15. Bb2 {[%clk 0:02:15]}  f6 {[%clk 0:02:26]} 16. Qc2 {[%clk 0:02:07]}  Rc8 {[%clk 0:02:14]} 17. Rac1 {[%clk 0:02:04]}  h6 {[%clk 0:01:43]} 18. Bf3 {[%clk 0:01:55]}  Bb5 {[%clk 0:01:36]} 19. Qc5 {[%clk 0:01:39]}  Rfd8 {[%clk 0:01:25]} 20. Qc2 {[%clk 0:01:19]}  a5 {[%clk 0:01:21]} 21. e4 {[%clk 0:01:11]}  Ne7 {[%clk 0:01:15]} 22. a4 {[%clk 0:01:10]}  Ba6 {[%clk 0:01:11]} 23. Qc5 {[%clk 0:01:07]}  Qxc5 {[%clk 0:01:05]} 24. bxc5 {[%clk 0:01:05]}  e5 {[%clk 0:01:03]} 25. Bc3 {[%clk 0:01:02]}  Rd3 {[%clk 0:00:53]} 26. Rxd3 {[%clk 0:00:53]}  Bxd3 {[%clk 0:00:54]} 27. Rd1 {[%clk 0:00:53]}  Bc2 {[%clk 0:00:52]} 28. Rd7 {[%clk 0:00:52]}  Kf7 {[%clk 0:00:52]} 29. Bxa5 {[%clk 0:00:46]}  Bxa4 {[%clk 0:00:52]} 30. Bb6 {[%clk 0:00:42]}  Bb3 {[%clk 0:00:48]} 31. Bh5+ {[%clk 0:00:38]}  g6 {[%clk 0:00:47]} 32. Bxg6+ {[%clk 0:00:35]}  Kxg6 {[%clk 0:00:44]} 33. Rxe7 {[%clk 0:00:35]}  Bc2 {[%clk 0:00:39]} 34. f3 {[%clk 0:00:34]}  Ra8 {[%clk 0:00:40]} 35. Kg2 {[%clk 0:00:26]}  Ra2 {[%clk 0:00:39]} 36. Kh3 {[%clk 0:00:26]}  Bd1 {[%clk 0:00:40]} 37. Re6 {[%clk 0:00:18]}  Bxf3 {[%clk 0:00:28]} 38. Bd8 {[%clk 0:00:18]}  Bg2+ {[%clk 0:00:20]} 39. Kh4 {[%clk 0:00:18]}  Bxe4 {[%clk 0:00:19]} 40. Rxf6+ {[%clk 0:00:17]}  Kh7 {[%clk 0:00:20]} 41. h3 {[%clk 0:00:17]}  Ra4 {[%clk 0:00:12]} 42. g4 {[%clk 0:00:16]}  Bg6 {[%clk 0:00:09]} 43. Re6 {[%clk 0:00:14]}  e4 {[%clk 0:00:09]} 44. Re7+ {[%clk 0:00:13]}  Kg8 {[%clk 0:00:08]} 45. Bc7 {[%clk 0:00:13]}  Rc4 {[%clk 0:00:06]} 46. Bd6 {[%clk 0:00:13]}  Bf7 {[%clk 0:00:06]} 47. Kg3 {[%clk 0:00:11]}  Bd5 {[%clk 0:00:05]} 48. Kf4 {[%clk 0:00:11]}  Rc3 {[%clk 0:00:05]} 49. Kf5 {[%clk 0:00:11]}  Rf3+ {[%clk 0:00:05]} 50. Kg6 {[%clk 0:00:11]}  Bf7+ {[%clk 0:00:02]} 51. Kxh6 {[%clk 0:00:11]}  Rxh3+ {[%clk 0:00:02]} 52. Kg5 {[%clk 0:00:11]}  e3 {[%clk 0:00:03]} 53. Bf4 {[%clk 0:00:08]}  Rh1 {[%clk 0:00:01]} 54. Bxe3 {[%clk 0:00:08]} 1-0


[Site "https://www.chess.com"]

[Event "Titled Tuesday Blitz March 29 Late 2022"]
[White "Hambleton, Aman"]
[Black "Reprintsev, Alexander"]
[WhiteFideId "2606577"]
[BlackFideId "14100541"]
[WhiteElo "2552"]
[BlackElo "2108"]
[Result "1-0"]
[Round "11"]
[TimeControl "180+1"]
[Date "2022.03.29"]
[WhiteClock "0:00:05"]
[BlackClock "0:00:01"]

1. d4 {[%clk 0:02:54]}  d5 {[%clk 0:02:59]} 2. Bf4 {[%clk 0:02:54]}  Nf6 {[%clk 0:02:58]} 3. e3 {[%clk 0:02:54]}  c5 {[%clk 0:02:58]} 4. c3 {[%clk 0:02:54]}  Qb6 {[%clk 0:02:54]} 5. Qb3 {[%clk 0:02:54]}  c4 {[%clk 0:02:54]} 6. Qc2 {[%clk 0:02:55]}  g6 {[%clk 0:02:54]} 7. b3 {[%clk 0:02:52]}  Bf5 {[%clk 0:02:53]} 8. Qb2 {[%clk 0:02:52]}  Nc6 {[%clk 0:02:48]} 9. Nd2 {[%clk 0:02:52]}  Bg7 {[%clk 0:02:43]} 10. Ngf3 {[%clk 0:02:52]}  O-O {[%clk 0:02:42]} 11. Be2 {[%clk 0:02:53]}  Nh5 {[%clk 0:02:38]} 12. Bg3 {[%clk 0:02:31]}  Nxg3 {[%clk 0:02:38]} 13. hxg3 {[%clk 0:02:32]}  e5 {[%clk 0:02:36]} 14. dxe5 {[%clk 0:02:33]}  Nxe5 {[%clk 0:02:36]} 15. Nxe5 {[%clk 0:02:33]}  Bxe5 {[%clk 0:02:36]} 16. Nf3 {[%clk 0:02:34]}  Bf6 {[%clk 0:02:36]} 17. O-O {[%clk 0:02:31]}  Rac8 {[%clk 0:02:31]} 18. Rac1 {[%clk 0:02:31]}  Bg4 {[%clk 0:02:10]} 19. Rfd1 {[%clk 0:02:29]}  Rfd8 {[%clk 0:02:09]} 20. Kf1 {[%clk 0:02:16]}  a5 {[%clk 0:02:08]} 21. Nd4 {[%clk 0:02:13]}  Bd7 {[%clk 0:01:39]} 22. Rb1 {[%clk 0:02:02]}  cxb3 {[%clk 0:01:36]} 23. Qxb3 {[%clk 0:01:59]}  Qxb3 {[%clk 0:01:27]} 24. Nxb3 {[%clk 0:01:56]}  Bxc3 {[%clk 0:01:23]} 25. Rxd5 {[%clk 0:01:55]}  Be6 {[%clk 0:01:23]} 26. Rxd8+ {[%clk 0:01:43]}  Rxd8 {[%clk 0:01:23]} 27. a4 {[%clk 0:01:40]}  Bb4 {[%clk 0:01:11]} 28. Nd4 {[%clk 0:01:38]}  Bd7 {[%clk 0:01:04]} 29. Bb5 {[%clk 0:01:39]}  Bxb5+ {[%clk 0:01:04]} 30. Nxb5 {[%clk 0:01:39]}  Rd2 {[%clk 0:01:01]} 31. Rc1 {[%clk 0:01:21]}  Ra2 {[%clk 0:00:58]} 32. Rc8+ {[%clk 0:01:15]}  Kg7 {[%clk 0:00:57]} 33. Rc7 {[%clk 0:01:16]}  Rxa4 {[%clk 0:00:56]} 34. Rxb7 {[%clk 0:01:17]}  Ra1+ {[%clk 0:00:54]} 35. Ke2 {[%clk 0:01:17]}  Ra2+ {[%clk 0:00:54]} 36. Kf1 {[%clk 0:01:15]}  a4 {[%clk 0:00:50]} 37. Nd4 {[%clk 0:00:48]}  Bc3 {[%clk 0:00:43]} 38. Ra7 {[%clk 0:00:46]}  a3 {[%clk 0:00:38]} 39. g4 {[%clk 0:00:44]}  h6 {[%clk 0:00:36]} 40. g3 {[%clk 0:00:39]}  Kf6 {[%clk 0:00:34]} 41. Nb5 {[%clk 0:00:26]}  Bb4 {[%clk 0:00:26]} 42. Ra4 {[%clk 0:00:19]}  Ra1+ {[%clk 0:00:20]} 43. Ke2 {[%clk 0:00:18]}  a2 {[%clk 0:00:21]} 44. Kf3 {[%clk 0:00:09]}  Be1 {[%clk 0:00:15]} 45. Nd6 {[%clk 0:00:04]}  Rd1 {[%clk 0:00:13]} 46. Ne4+ {[%clk 0:00:03]}  Ke5 {[%clk 0:00:12]} 47. Rxa2 {[%clk 0:00:04]}  f5 {[%clk 0:00:12]} 48. gxf5 {[%clk 0:00:04]}  gxf5 {[%clk 0:00:12]} 49. Nc5 {[%clk 0:00:04]}  h5 {[%clk 0:00:10]} 50. Nb3 {[%clk 0:00:03]}  Rb1 {[%clk 0:00:09]} 51. Nd4 {[%clk 0:00:02]}  Bc3 {[%clk 0:00:08]} 52. Ne2 {[%clk 0:00:02]}  Be1 {[%clk 0:00:07]} 53. Nf4 {[%clk 0:00:02]}  h4 {[%clk 0:00:04]} 54. Ng6+ {[%clk 0:00:03]}  Kf6 {[%clk 0:00:03]} 55. Nxh4 {[%clk 0:00:03]}  Kg5 {[%clk 0:00:03]} 56. Ng2 {[%clk 0:00:03]}  Bc3 {[%clk 0:00:03]} 57. Rc2 {[%clk 0:00:03]}  Rb3 {[%clk 0:00:02]} 58. Nf4 {[%clk 0:00:03]}  Bb4 {[%clk 0:00:02]} 59. Ra2 {[%clk 0:00:02]}  Bc3 {[%clk 0:00:02]} 60. Nd5 {[%clk 0:00:02]}  Be5 {[%clk 0:00:02]} 61. Ra5 {[%clk 0:00:01]}  Bb2 {[%clk 0:00:02]} 62. Nf4 {[%clk 0:00:01]}  Kf6 {[%clk 0:00:02]} 63. Nh5+ {[%clk 0:00:01]}  Kg6 {[%clk 0:00:01]} 64. Nf4+ {[%clk 0:00:01]}  Kf6 {[%clk 0:00:02]} 65. Rc5 {[%clk 0:00:01]}  Kf7 {[%clk 0:00:02]} 66. Rc6 {[%clk 0:00:02]}  Be5 {[%clk 0:00:01]} 67. Rc5 {[%clk 0:00:02]}  Kf6 {[%clk 0:00:02]} 68. Nd5+ {[%clk 0:00:02]}  Ke6 {[%clk 0:00:02]} 69. Nf4+ {[%clk 0:00:02]}  Kf6 {[%clk 0:00:03]} 70. Rc4 {[%clk 0:00:02]}  Bc3 {[%clk 0:00:03]} 71. Ne2 {[%clk 0:00:03]}  Bd2 {[%clk 0:00:02]} 72. Nd4 {[%clk 0:00:03]}  Rb2 {[%clk 0:00:02]} 73. Rc6+ {[%clk 0:00:02]}  Kg5 {[%clk 0:00:01]} 74. Rc5 {[%clk 0:00:02]}  Be1 {[%clk 0:00:02]} 75. Rxf5+ {[%clk 0:00:03]}  Kh6 {[%clk 0:00:03]} 76. Kg2 {[%clk 0:00:03]}  Rd2 {[%clk 0:00:03]} 77. Rf3 {[%clk 0:00:03]}  Ra2 {[%clk 0:00:02]} 78. Nf5+ {[%clk 0:00:03]}  Kg5 {[%clk 0:00:02]} 79. Nh4 {[%clk 0:00:03]}  Kh5 {[%clk 0:00:02]} 80. Kf1 {[%clk 0:00:03]}  Bd2 {[%clk 0:00:02]} 81. Ng2 {[%clk 0:00:03]}  Bc1 {[%clk 0:00:01]} 82. Rf4 {[%clk 0:00:03]}  Kg5 {[%clk 0:00:02]} 83. Ne1 {[%clk 0:00:03]}  Bd2 {[%clk 0:00:02]} 84. Nf3+ {[%clk 0:00:03]}  Kg6 {[%clk 0:00:01]} 85. Nxd2 {[%clk 0:00:04]}  Rxd2 {[%clk 0:00:01]} 86. Kg2 {[%clk 0:00:05]} 1-0


[Site "https://www.chess.com"]

[Event "Titled Tuesday Blitz March 29 Late 2022"]
[White "Indjic, Aleksandar"]
[Black "Yuan, Qingyu"]
[WhiteFideId "911925"]
[BlackFideId "8609772"]
[WhiteElo "2616"]
[BlackElo "2359"]
[Result "0-1"]
[Round "11"]
[TimeControl "180+1"]
[Date "2022.03.29"]
[WhiteClock "0:00:03"]
[BlackClock "0:00:04"]

1. d4 {[%clk 0:03:00]}  d5 {[%clk 0:03:00]} 2. c4 {[%clk 0:03:00]}  e6 {[%clk 0:03:00]} 3. Nf3 {[%clk 0:02:59]}  Nf6 {[%clk 0:03:00]} 4. Bg5 {[%clk 0:02:58]}  dxc4 {[%clk 0:03:00]} 5. Qa4+ {[%clk 0:02:57]}  Nbd7 {[%clk 0:02:53]} 6. e4 {[%clk 0:02:56]}  Be7 {[%clk 0:02:46]} 7. Nc3 {[%clk 0:02:48]}  h6 {[%clk 0:02:33]} 8. Bxf6 {[%clk 0:02:41]}  Bxf6 {[%clk 0:02:31]} 9. e5 {[%clk 0:02:41]}  Be7 {[%clk 0:02:29]} 10. Bxc4 {[%clk 0:02:41]}  O-O {[%clk 0:02:28]} 11. Qc2 {[%clk 0:02:40]}  c5 {[%clk 0:02:22]} 12. Rd1 {[%clk 0:02:34]}  cxd4 {[%clk 0:02:12]} 13. Rxd4 {[%clk 0:02:35]}  Qa5 {[%clk 0:02:07]} 14. Qe4 {[%clk 0:02:24]}  Nc5 {[%clk 0:01:48]} 15. Qe2 {[%clk 0:02:18]}  Bd7 {[%clk 0:01:28]} 16. O-O {[%clk 0:02:12]}  Bc6 {[%clk 0:01:26]} 17. Rg4 {[%clk 0:01:47]}  Rad8 {[%clk 0:01:11]} 18. a3 {[%clk 0:01:33]}  Qb6 {[%clk 0:01:01]} 19. h4 {[%clk 0:01:24]}  Kh8 {[%clk 0:00:54]} 20. h5 {[%clk 0:01:24]}  Qc7 {[%clk 0:00:49]} 21. Nd4 {[%clk 0:01:19]}  a6 {[%clk 0:00:43]} 22. Nxc6 {[%clk 0:01:10]}  Qxc6 {[%clk 0:00:43]} 23. Qe3 {[%clk 0:01:11]}  b5 {[%clk 0:00:38]} 24. Be2 {[%clk 0:00:50]}  Rd7 {[%clk 0:00:29]} 25. Qg3 {[%clk 0:00:49]}  Rg8 {[%clk 0:00:27]} 26. Kh2 {[%clk 0:00:48]}  Qc7 {[%clk 0:00:21]} 27. f4 {[%clk 0:00:41]}  Nb3 {[%clk 0:00:21]} 28. Bd3 {[%clk 0:00:37]}  Nc5 {[%clk 0:00:15]} 29. Bb1 {[%clk 0:00:36]}  Rd2 {[%clk 0:00:16]} 30. b4 {[%clk 0:00:34]}  Nd7 {[%clk 0:00:12]} 31. Ne4 {[%clk 0:00:35]}  Rb2 {[%clk 0:00:12]} 32. Qd3 {[%clk 0:00:32]}  Nf8 {[%clk 0:00:07]} 33. Kh1 {[%clk 0:00:18]}  Qc4 {[%clk 0:00:07]} 34. Qf3 {[%clk 0:00:10]}  Rb3 {[%clk 0:00:07]} 35. Qd1 {[%clk 0:00:10]}  Rxa3 {[%clk 0:00:06]} 36. Ng3 {[%clk 0:00:07]}  Ra1 {[%clk 0:00:04]} 37. f5 {[%clk 0:00:07]}  Rxb1 {[%clk 0:00:04]} 38. Qf3 {[%clk 0:00:04]}  Rxf1+ {[%clk 0:00:04]} 39. Nxf1 {[%clk 0:00:05]}  Qc6 {[%clk 0:00:03]} 40. Qxc6 {[%clk 0:00:03]}  exf5 {[%clk 0:00:03]} 41. Rf4 {[%clk 0:00:04]}  Ne6 {[%clk 0:00:04]} 42. Rf2 {[%clk 0:00:04]}  Bxb4 {[%clk 0:00:04]} 43. Qd7 {[%clk 0:00:03]}  Rf8 {[%clk 0:00:03]} 44. Ne3 {[%clk 0:00:03]}  f4 {[%clk 0:00:03]} 45. Nf5 {[%clk 0:00:03]}  Bc5 {[%clk 0:00:04]} 46. Rf3 {[%clk 0:00:03]}  Rd8 {[%clk 0:00:04]} 0-1


[Site "https://www.chess.com"]